[Event "Titled Tuesday Blitz April 05 Late 2022"]
[White "Czopor, Maciej"]
[Black "Pniaczek, Marek"]
[WhiteFideId "21805431"]
[BlackFideId "21800421"]
[WhiteElo "1999"]
[BlackElo "2138"]
[Result "1-0"]
[Round "01"]
[TimeControl "180+1"]
[Date "2022.04.06"]
[WhiteClock "0:02:13"]
[BlackClock "0:02:24"]

1. d4 {[%clk 0:02:51]}  Nf6 {[%clk 0:02:59]} 2. c4 {[%clk 0:02:52]}  e6 {[%clk 0:02:59]} 3. g4 {[%clk 0:02:49]}  d5 {[%clk 0:02:44]} 4. g5 {[%clk 0:02:42]}  Ne4 {[%clk 0:02:44]} 5. Bg2 {[%clk 0:02:42]}  Bb4+ {[%clk 0:02:42]} 6. Kf1 {[%clk 0:02:42]}  O-O {[%clk 0:02:39]} 7. h4 {[%clk 0:02:41]}  c5 {[%clk 0:02:37]} 8. cxd5 {[%clk 0:02:22]}  exd5 {[%clk 0:02:35]} 9. a3 {[%clk 0:02:15]}  Ba5 {[%clk 0:02:29]} 10. dxc5 {[%clk 0:02:14]}  Nxc5 {[%clk 0:02:24]} 11. b4 {[%clk 0:02:13]} 1-0


[Site "https://www.chess.com"]

[Event "Titled Tuesday Blitz April 05 Late 2022"]
[White "D`Arruda, Ricardo D."]
[Black "Spata, German"]
[WhiteFideId "100692"]
[BlackFideId "113026"]
[WhiteElo "2216"]
[BlackElo "2238"]
[Result "0-1"]
[Round "01"]
[TimeControl "180+1"]
[Date "2022.04.06"]
[WhiteClock "0:00:12"]
[BlackClock "0:00:07"]

1. Nf3 {[%clk 0:02:57]}  Nf6 {[%clk 0:02:59]} 2. d4 {[%clk 0:02:57]}  e6 {[%clk 0:02:59]} 3. c4 {[%clk 0:02:55]}  b6 {[%clk 0:02:54]} 4. Nc3 {[%clk 0:02:53]}  Bb7 {[%clk 0:02:55]} 5. g3 {[%clk 0:02:52]}  Be7 {[%clk 0:02:54]} 6. Bg2 {[%clk 0:02:51]}  O-O {[%clk 0:02:52]} 7. O-O {[%clk 0:02:51]}  Ne4 {[%clk 0:02:52]} 8. Bd2 {[%clk 0:02:49]}  Bf6 {[%clk 0:02:50]} 9. Rc1 {[%clk 0:02:40]}  Nxc3 {[%clk 0:02:50]} 10. Bxc3 {[%clk 0:02:39]}  d6 {[%clk 0:02:50]} 11. Qd3 {[%clk 0:02:31]}  Nd7 {[%clk 0:02:50]} 12. e4 {[%clk 0:02:30]}  e5 {[%clk 0:02:49]} 13. d5 {[%clk 0:02:24]}  Nc5 {[%clk 0:02:48]} 14. Qc2 {[%clk 0:02:19]}  a5 {[%clk 0:02:48]} 15. b3 {[%clk 0:02:15]}  Bg5 {[%clk 0:02:44]} 16. Nxg5 {[%clk 0:02:10]}  Qxg5 {[%clk 0:02:45]} 17. f4 {[%clk 0:02:09]}  Qe7 {[%clk 0:02:37]} 18. f5 {[%clk 0:02:01]}  f6 {[%clk 0:02:25]} 19. g4 {[%clk 0:02:01]}  c6 {[%clk 0:02:24]} 20. h4 {[%clk 0:01:58]}  cxd5 {[%clk 0:02:24]} 21. exd5 {[%clk 0:01:58]}  Ba6 {[%clk 0:02:16]} 22. a4 {[%clk 0:01:55]}  e4 {[%clk 0:02:10]} 23. Rce1 {[%clk 0:01:55]}  Rae8 {[%clk 0:01:59]} 24. Bd4 {[%clk 0:01:55]}  Qc7 {[%clk 0:01:55]} 25. Re3 {[%clk 0:01:51]}  Bc8 {[%clk 0:01:54]} 26. Qf2 {[%clk 0:01:42]}  Rf7 {[%clk 0:01:38]} 27. h5 {[%clk 0:01:39]}  h6 {[%clk 0:01:30]} 28. Rfe1 {[%clk 0:01:38]}  Rfe7 {[%clk 0:01:30]} 29. Bxc5 {[%clk 0:01:36]}  Qxc5 {[%clk 0:01:28]} 30. Rxe4 {[%clk 0:01:36]}  Re5 {[%clk 0:01:21]} 31. Qxc5 {[%clk 0:01:31]}  bxc5 {[%clk 0:01:21]} 32. Rxe5 {[%clk 0:01:27]}  fxe5 {[%clk 0:01:19]} 33. Be4 {[%clk 0:01:24]}  Kf7 {[%clk 0:01:16]} 34. Kg2 {[%clk 0:01:24]}  Kf6 {[%clk 0:01:16]} 35. Kg3 {[%clk 0:01:25]}  Kg5 {[%clk 0:00:57]} 36. Rf1 {[%clk 0:01:25]}  Kf6 {[%clk 0:00:51]} 37. Kh4 {[%clk 0:01:24]}  Bd7 {[%clk 0:00:46]} 38. Rg1 {[%clk 0:01:23]}  Rb8 {[%clk 0:00:36]} 39. Rg3 {[%clk 0:01:22]}  Be8 {[%clk 0:00:32]} 40. Bc2 {[%clk 0:01:20]}  Bd7 {[%clk 0:00:31]} 41. g5+ {[%clk 0:01:16]}  hxg5+ {[%clk 0:00:32]} 42. Rxg5 {[%clk 0:01:16]}  Be8 {[%clk 0:00:32]} 43. Bd1 {[%clk 0:00:51]}  Bf7 {[%clk 0:00:30]} 44. Rg3 {[%clk 0:00:47]}  Re8 {[%clk 0:00:26]} 45. Bc2 {[%clk 0:00:42]}  e4 {[%clk 0:00:23]} 46. Kg4 {[%clk 0:00:40]}  e3 {[%clk 0:00:20]} 47. Rg1 {[%clk 0:00:29]}  e2 {[%clk 0:00:19]} 48. Re1 {[%clk 0:00:28]}  Re5 {[%clk 0:00:15]} 49. Bd3 {[%clk 0:00:25]}  Re3 {[%clk 0:00:14]} 50. Bxe2 {[%clk 0:00:24]}  Rxb3 {[%clk 0:00:11]} 51. Bf3 {[%clk 0:00:20]}  Rb4 {[%clk 0:00:10]} 52. Be2 {[%clk 0:00:17]}  Bxd5 {[%clk 0:00:09]} 53. Rd1 {[%clk 0:00:15]}  Bxc4 {[%clk 0:00:09]} 54. Rxd6+ {[%clk 0:00:14]}  Ke5 {[%clk 0:00:09]} 55. Rd8 {[%clk 0:00:12]}  Bxe2+ {[%clk 0:00:09]} 56. Kg5 {[%clk 0:00:12]}  Rg4# {[%clk 0:00:07]} 0-1


[Site "https://www.chess.com"]

[Event "Titled Tuesday Blitz April 05 Late 2022"]
[White "Degardin, Sylvain"]
[Black "Sanal, Vahap"]
[WhiteFideId "20623070"]
[BlackFideId "6300545"]
[WhiteElo "2156"]
[BlackElo "2603"]
[Result "0-1"]
[Round "01"]
[TimeControl "180+1"]
[Date "2022.04.05"]
[WhiteClock "0:00:02"]
[BlackClock "0:00:11"]

1. d4 {[%clk 0:03:00]}  Nf6 {[%clk 0:02:55]} 2. c4 {[%clk 0:03:00]}  e6 {[%clk 0:02:55]} 3. g3 {[%clk 0:02:58]}  d5 {[%clk 0:02:47]} 4. Nf3 {[%clk 0:02:57]}  Bb4+ {[%clk 0:02:44]} 5. Bd2 {[%clk 0:02:57]}  Bxd2+ {[%clk 0:02:45]} 6. Nbxd2 {[%clk 0:02:56]}  O-O {[%clk 0:02:42]} 7. Bg2 {[%clk 0:02:55]}  b6 {[%clk 0:02:42]} 8. O-O {[%clk 0:02:54]}  Bb7 {[%clk 0:02:42]} 9. Qc2 {[%clk 0:02:44]}  Nbd7 {[%clk 0:02:40]} 10. Rac1 {[%clk 0:02:42]}  c5 {[%clk 0:02:34]} 11. cxd5 {[%clk 0:02:41]}  Nxd5 {[%clk 0:02:30]} 12. Rfd1 {[%clk 0:02:23]}  Rc8 {[%clk 0:02:26]} 13. Qb1 {[%clk 0:02:23]}  Qe7 {[%clk 0:02:23]} 14. e4 {[%clk 0:02:13]}  N5f6 {[%clk 0:02:18]} 15. dxc5 {[%clk 0:01:56]}  Nxc5 {[%clk 0:02:18]} 16. Ne5 {[%clk 0:01:56]}  Rfd8 {[%clk 0:02:04]} 17. b4 {[%clk 0:01:44]}  Na4 {[%clk 0:01:55]} 18. Qb3 {[%clk 0:01:28]}  b5 {[%clk 0:01:34]} 19. Qe3 {[%clk 0:00:58]}  Rxc1 {[%clk 0:00:59]} 20. Rxc1 {[%clk 0:00:59]}  Qxb4 {[%clk 0:00:59]} 21. Nb3 {[%clk 0:00:48]}  Nb6 {[%clk 0:00:56]} 22. Nc5 {[%clk 0:00:44]}  Ba8 {[%clk 0:00:53]} 23. Ned3 {[%clk 0:00:34]}  Qa3 {[%clk 0:00:50]} 24. e5 {[%clk 0:00:31]}  Nfd5 {[%clk 0:00:20]} 25. Qg5 {[%clk 0:00:31]}  Rf8 {[%clk 0:00:17]} 26. Re1 {[%clk 0:00:14]}  h6 {[%clk 0:00:17]} 27. Qg4 {[%clk 0:00:10]}  Ne7 {[%clk 0:00:13]} 28. Bxa8 {[%clk 0:00:08]}  Rxa8 {[%clk 0:00:14]} 29. Re3 {[%clk 0:00:05]}  Nf5 {[%clk 0:00:14]} 30. Rf3 {[%clk 0:00:05]}  Rd8 {[%clk 0:00:14]} 31. Qe4 {[%clk 0:00:01]}  Qxa2 {[%clk 0:00:12]} 32. Kg2 {[%clk 0:00:01]}  Qd5 {[%clk 0:00:12]} 33. Qxd5 {[%clk 0:00:02]}  Rxd5 {[%clk 0:00:11]} 0-1


[Site "https://www.chess.com"]

[Event "Titled Tuesday Blitz April 05 Late 2022"]
[White "Dreev, Aleksey"]
[Black "Morris-Suzuki, Sophie"]
[WhiteFideId "4100107"]
[BlackFideId "30922615"]
[WhiteElo "2625"]
[BlackElo "2505"]
[Result "1-0"]
[Round "01"]
[TimeControl "180+1"]
[Date "2022.04.05"]
[WhiteClock "0:00:15"]
[BlackClock "0:00:15"]

1. d4 {[%clk 0:03:00]}  Nf6 {[%clk 0:02:58]} 2. c4 {[%clk 0:03:01]}  e6 {[%clk 0:02:57]} 3. Nc3 {[%clk 0:03:01]}  d5 {[%clk 0:02:56]} 4. Nf3 {[%clk 0:03:00]}  Be7 {[%clk 0:02:55]} 5. Qc2 {[%clk 0:02:59]}  O-O {[%clk 0:02:54]} 6. cxd5 {[%clk 0:02:59]}  exd5 {[%clk 0:02:53]} 7. Bg5 {[%clk 0:02:59]}  c6 {[%clk 0:02:53]} 8. e3 {[%clk 0:02:59]}  Nbd7 {[%clk 0:02:54]} 9. Bd3 {[%clk 0:02:59]}  Re8 {[%clk 0:02:53]} 10. h3 {[%clk 0:03:00]}  Nf8 {[%clk 0:02:53]} 11. Bf4 {[%clk 0:03:00]}  Ng6 {[%clk 0:02:48]} 12. Bh2 {[%clk 0:03:00]}  Bd6 {[%clk 0:02:47]} 13. Bxd6 {[%clk 0:03:01]}  Qxd6 {[%clk 0:02:47]} 14. O-O-O {[%clk 0:03:01]}  a5 {[%clk 0:02:41]} 15. Kb1 {[%clk 0:03:01]}  a4 {[%clk 0:02:29]} 16. Nxa4 {[%clk 0:03:00]}  Ne4 {[%clk 0:02:21]} 17. Nc5 {[%clk 0:02:58]}  f5 {[%clk 0:02:18]} 18. h4 {[%clk 0:02:51]}  b6 {[%clk 0:02:15]} 19. Nb3 {[%clk 0:02:47]}  c5 {[%clk 0:01:55]} 20. h5 {[%clk 0:02:41]}  Ne7 {[%clk 0:01:43]} 21. Bb5 {[%clk 0:02:42]}  Rd8 {[%clk 0:01:34]} 22. dxc5 {[%clk 0:02:30]}  bxc5 {[%clk 0:01:34]} 23. h6 {[%clk 0:02:30]}  c4 {[%clk 0:01:27]} 24. Nbd4 {[%clk 0:02:25]}  c3 {[%clk 0:01:25]} 25. hxg7 {[%clk 0:02:12]}  cxb2 {[%clk 0:01:10]} 26. Qxb2 {[%clk 0:02:12]}  Ra3 {[%clk 0:01:06]} 27. Rc1 {[%clk 0:02:11]}  Ba6 {[%clk 0:01:03]} 28. Nc6 {[%clk 0:01:44]}  Bxb5 {[%clk 0:00:48]} 29. Rh6 {[%clk 0:01:13]}  Bd3+ {[%clk 0:00:44]} 30. Ka1 {[%clk 0:01:11]}  Qxh6 {[%clk 0:00:26]} 31. Nxe7+ {[%clk 0:01:07]}  Kf7 {[%clk 0:00:27]} 32. g8=Q+ {[%clk 0:01:06]}  Rxg8 {[%clk 0:00:25]} 33. Nxg8 {[%clk 0:01:05]}  Qa6 {[%clk 0:00:21]} 34. Nh6+ {[%clk 0:00:58]}  Kg6 {[%clk 0:00:19]} 35. Ne5+ {[%clk 0:00:57]}  Kxh6 {[%clk 0:00:17]} 36. Rh1+ {[%clk 0:00:57]}  Kg7 {[%clk 0:00:10]} 37. Nxd3+ {[%clk 0:00:57]}  Nc3 {[%clk 0:00:09]} 38. Nb4 {[%clk 0:00:57]}  Qa4 {[%clk 0:00:06]} 39. Rc1 {[%clk 0:00:19]}  Qxb4 {[%clk 0:00:07]} 40. Rc2 {[%clk 0:00:19]}  Rxa2+ {[%clk 0:00:06]} 41. Qxa2 {[%clk 0:00:20]}  Nxa2 {[%clk 0:00:07]} 42. Kxa2 {[%clk 0:00:20]}  Qa4+ {[%clk 0:00:07]} 43. Kb2 {[%clk 0:00:21]}  Qe4 {[%clk 0:00:07]} 44. g3 {[%clk 0:00:21]}  Qf3 {[%clk 0:00:07]} 45. Rd2 {[%clk 0:00:21]}  Qe4 {[%clk 0:00:07]} 46. Rd4 {[%clk 0:00:18]}  Qf3 {[%clk 0:00:08]} 47. Rf4 {[%clk 0:00:18]}  Qe2+ {[%clk 0:00:08]} 48. Kc3 {[%clk 0:00:18]}  Kf6 {[%clk 0:00:09]} 49. Kb3 {[%clk 0:00:16]}  Qd1+ {[%clk 0:00:09]} 50. Kc3 {[%clk 0:00:16]}  Qc1+ {[%clk 0:00:09]} 51. Kd3 {[%clk 0:00:16]}  Qb1+ {[%clk 0:00:09]} 52. Ke2 {[%clk 0:00:17]}  Qc2+ {[%clk 0:00:09]} 53. Kf3 {[%clk 0:00:16]}  Ke5 {[%clk 0:00:09]} 54. Rd4 {[%clk 0:00:15]}  Qc1 {[%clk 0:00:08]} 55. Kg2 {[%clk 0:00:13]}  Qe1 {[%clk 0:00:08]} 56. Rh4 {[%clk 0:00:13]}  Qd1 {[%clk 0:00:06]} 57. Rxh7 {[%clk 0:00:12]}  d4 {[%clk 0:00:07]} 58. exd4+ {[%clk 0:00:12]}  Qxd4 {[%clk 0:00:07]} 59. Rh4 {[%clk 0:00:12]}  Qd5+ {[%clk 0:00:07]} 60. Kg1 {[%clk 0:00:13]}  Qd1+ {[%clk 0:00:07]} 61. Kg2 {[%clk 0:00:13]}  Qd5+ {[%clk 0:00:07]} 62. Kg1 {[%clk 0:00:13]}  Qc5 {[%clk 0:00:07]} 63. Rf4 {[%clk 0:00:13]}  Qc1+ {[%clk 0:00:07]} 64. Kg2 {[%clk 0:00:13]}  Qc6+ {[%clk 0:00:06]} 65. Kg1 {[%clk 0:00:13]}  Qc1+ {[%clk 0:00:06]} 66. Kg2 {[%clk 0:00:14]}  Qc7 {[%clk 0:00:05]} 67. Kg1 {[%clk 0:00:14]}  Qb7 {[%clk 0:00:06]} 68. Kh2 {[%clk 0:00:12]}  Qh7+ {[%clk 0:00:06]} 69. Kg2 {[%clk 0:00:12]}  Qh5 {[%clk 0:00:06]} 70. Kg1 {[%clk 0:00:10]}  Qh3 {[%clk 0:00:06]} 71. Rh4 {[%clk 0:00:09]}  Qxh4 {[%clk 0:00:05]} 72. gxh4 {[%clk 0:00:10]}  Kf4 {[%clk 0:00:05]} 73. f3 {[%clk 0:00:10]}  Ke5 {[%clk 0:00:02]} 74. Kf2 {[%clk 0:00:09]}  f4 {[%clk 0:00:02]} 75. Ke2 {[%clk 0:00:09]}  Kf5 {[%clk 0:00:03]} 76. Kd3 {[%clk 0:00:10]}  Ke5 {[%clk 0:00:03]} 77. Kc4 {[%clk 0:00:10]}  Kf5 {[%clk 0:00:03]} 78. Kd4 {[%clk 0:00:10]}  Kg6 {[%clk 0:00:03]} 79. Ke4 {[%clk 0:00:11]}  Kh5 {[%clk 0:00:04]} 80. Kxf4 {[%clk 0:00:11]}  Kxh4 {[%clk 0:00:05]} 81. Ke5 {[%clk 0:00:12]}  Kg5 {[%clk 0:00:05]} 82. f4+ {[%clk 0:00:12]}  Kg6 {[%clk 0:00:06]} 83. Ke6 {[%clk 0:00:13]}  Kg7 {[%clk 0:00:06]} 84. f5 {[%clk 0:00:13]}  Kf8 {[%clk 0:00:07]} 85. Kf6 {[%clk 0:00:13]}  Ke8 {[%clk 0:00:08]} 86. Kg7 {[%clk 0:00:14]}  Ke7 {[%clk 0:00:07]} 87. f6+ {[%clk 0:00:14]}  Ke8 {[%clk 0:00:08]} 88. f7+ {[%clk 0:00:15]}  Ke7 {[%clk 0:00:09]} 89. f8=Q+ {[%clk 0:00:16]}  Ke6 {[%clk 0:00:10]} 90. Qf7+ {[%clk 0:00:16]}  Ke5 {[%clk 0:00:11]} 91. Kg6 {[%clk 0:00:16]}  Ke4 {[%clk 0:00:12]} 92. Qc4+ {[%clk 0:00:16]}  Ke3 {[%clk 0:00:13]} 93. Kf5 {[%clk 0:00:16]}  Kd2 {[%clk 0:00:13]} 94. Qb3 {[%clk 0:00:15]}  Kc1 {[%clk 0:00:13]} 95. Qa2 {[%clk 0:00:15]}  Kd1 {[%clk 0:00:14]} 96. Ke4 {[%clk 0:00:15]}  Kc1 {[%clk 0:00:14]} 97. Kd3 {[%clk 0:00:15]}  Kd1 {[%clk 0:00:15]} 98. Qa1# {[%clk 0:00:15]} 1-0


[Site "https://www.chess.com"]

[Event "Titled Tuesday Blitz April 05 Late 2022"]
[White "Ezat, Mohamed"]
[Black "Johnson, Ben"]
[WhiteFideId "10600906"]
[BlackFideId "2010917"]
[WhiteElo "2386"]
[BlackElo "2154"]
[Result "1-0"]
[Round "01"]
[TimeControl "180+1"]
[Date "2022.04.06"]
[WhiteClock "0:02:03"]
[BlackClock "0:00:16"]

1. d4 {[%clk 0:02:57]}  Nf6 {[%clk 0:02:58]} 2. c4 {[%clk 0:02:55]}  e6 {[%clk 0:02:58]} 3. Nc3 {[%clk 0:02:52]}  Bb4 {[%clk 0:02:58]} 4. e3 {[%clk 0:02:53]}  O-O {[%clk 0:02:58]} 5. a3 {[%clk 0:02:53]}  Bxc3+ {[%clk 0:02:57]} 6. bxc3 {[%clk 0:02:54]}  b6 {[%clk 0:02:51]} 7. Bd3 {[%clk 0:02:54]}  Ba6 {[%clk 0:02:47]} 8. e4 {[%clk 0:02:53]}  c5 {[%clk 0:02:22]} 9. f4 {[%clk 0:02:49]}  d6 {[%clk 0:02:13]} 10. Nf3 {[%clk 0:02:47]}  Nc6 {[%clk 0:02:05]} 11. e5 {[%clk 0:02:43]}  Ne8 {[%clk 0:01:32]} 12. Be3 {[%clk 0:02:36]}  g6 {[%clk 0:01:21]} 13. h4 {[%clk 0:02:31]}  h5 {[%clk 0:01:17]} 14. g4 {[%clk 0:02:17]}  Ng7 {[%clk 0:01:17]} 15. f5 {[%clk 0:02:08]}  exf5 {[%clk 0:01:06]} 16. gxf5 {[%clk 0:02:07]}  dxe5 {[%clk 0:01:00]} 17. dxe5 {[%clk 0:02:06]}  Nxf5 {[%clk 0:00:54]} 18. Bxf5 {[%clk 0:02:04]}  Qxd1+ {[%clk 0:00:54]} 19. Rxd1 {[%clk 0:02:04]}  gxf5 {[%clk 0:00:54]} 20. Rg1+ {[%clk 0:02:05]}  Kh7 {[%clk 0:00:40]} 21. Rd6 {[%clk 0:02:04]}  Rg8 {[%clk 0:00:16]} 22. Rh6# {[%clk 0:02:03]} 1-0


[Site "https://www.chess.com"]

[Event "Titled Tuesday Blitz April 05 Late 2022"]
[White "Fiedorek, Michal"]
[Black "Chyngyz, Sultai"]
[WhiteFideId "1199528"]
[BlackFideId "13803158"]
[WhiteElo "1833"]
[BlackElo "1365"]
[Result "1-0"]
[Round "01"]
[TimeControl "180+1"]
[Date "2022.04.06"]
[WhiteClock "0:00:55"]
[BlackClock "0:00:16"]

1. e4 {[%clk 0:03:00]}  c5 {[%clk 0:02:56]} 2. Nf3 {[%clk 0:02:58]}  d6 {[%clk 0:02:55]} 3. Bb5+ {[%clk 0:02:57]}  Nd7 {[%clk 0:02:54]} 4. Ba4 {[%clk 0:02:55]}  Nf6 {[%clk 0:02:54]} 5. O-O {[%clk 0:02:54]}  g6 {[%clk 0:02:53]} 6. d4 {[%clk 0:02:50]}  Nxe4 {[%clk 0:02:51]} 7. Re1 {[%clk 0:02:50]}  Nf6 {[%clk 0:02:51]} 8. dxc5 {[%clk 0:02:50]}  dxc5 {[%clk 0:02:40]} 9. Nc3 {[%clk 0:02:27]}  Bg7 {[%clk 0:02:38]} 10. Nd5 {[%clk 0:02:27]}  e6 {[%clk 0:02:21]} 11. Nxf6+ {[%clk 0:02:05]}  Qxf6 {[%clk 0:01:41]} 12. Bg5 {[%clk 0:02:02]}  Qf5 {[%clk 0:01:27]} 13. Qd6 {[%clk 0:01:37]}  Bf6 {[%clk 0:01:20]} 14. Ne5 {[%clk 0:01:24]}  Bxg5 {[%clk 0:00:28]} 15. Bxd7+ {[%clk 0:01:20]}  Bxd7 {[%clk 0:00:26]} 16. Qxd7+ {[%clk 0:01:18]}  Kf8 {[%clk 0:00:26]} 17. Qxb7 {[%clk 0:01:16]}  Kg7 {[%clk 0:00:24]} 18. Rad1 {[%clk 0:01:11]}  Rhd8 {[%clk 0:00:23]} 19. g4 {[%clk 0:01:00]}  Qf6 {[%clk 0:00:21]} 20. Rd7 {[%clk 0:00:56]}  Rxd7 {[%clk 0:00:20]} 21. Nxd7 {[%clk 0:00:55]}  Qd8 {[%clk 0:00:17]} 22. Nxc5 {[%clk 0:00:55]}  Rb8 {[%clk 0:00:16]} 23. Nxe6+ {[%clk 0:00:55]} 1-0


[Site "https://www.chess.com"]

[Event "Titled Tuesday Blitz April 05 Late 2022"]
[White "Girsh, Daniel"]
[Black "Tregubov, Pavel V."]
[WhiteFideId "30949190"]
[BlackFideId "4115341"]
[WhiteElo "2295"]
[BlackElo "2341"]
[Result "1-0"]
[Round "01"]
[TimeControl "180+1"]
[Date "2022.04.06"]
[WhiteClock "0:00:04"]
[BlackClock "0:00:09"]

1. e4 {[%clk 0:02:59]}  e5 {[%clk 0:02:59]} 2. Nf3 {[%clk 0:02:59]}  Nf6 {[%clk 0:02:59]} 3. Nxe5 {[%clk 0:02:57]}  d6 {[%clk 0:02:59]} 4. Nf3 {[%clk 0:02:57]}  Nxe4 {[%clk 0:03:00]} 5. d4 {[%clk 0:02:58]}  d5 {[%clk 0:03:00]} 6. Bd3 {[%clk 0:02:59]}  Bd6 {[%clk 0:03:00]} 7. O-O {[%clk 0:02:58]}  O-O {[%clk 0:03:01]} 8. c4 {[%clk 0:02:58]}  c6 {[%clk 0:03:01]} 9. Re1 {[%clk 0:02:58]}  Bf5 {[%clk 0:02:57]} 10. Nc3 {[%clk 0:02:57]}  Nxc3 {[%clk 0:02:55]} 11. bxc3 {[%clk 0:02:58]}  Bxd3 {[%clk 0:02:54]} 12. Qxd3 {[%clk 0:02:58]}  dxc4 {[%clk 0:02:53]} 13. Qxc4 {[%clk 0:02:59]}  Nd7 {[%clk 0:02:49]} 14. Bg5 {[%clk 0:02:56]}  Qc7 {[%clk 0:02:47]} 15. Rab1 {[%clk 0:02:49]}  Rfe8 {[%clk 0:02:43]} 16. Bh4 {[%clk 0:02:42]}  h6 {[%clk 0:02:42]} 17. Bg3 {[%clk 0:02:41]}  b5 {[%clk 0:02:27]} 18. Qd3 {[%clk 0:02:30]}  a6 {[%clk 0:02:23]} 19. Qf5 {[%clk 0:02:26]}  c5 {[%clk 0:02:13]} 20. d5 {[%clk 0:01:56]}  Bxg3 {[%clk 0:02:01]} 21. hxg3 {[%clk 0:01:55]}  Qd6 {[%clk 0:02:02]} 22. g4 {[%clk 0:01:37]}  Nb6 {[%clk 0:01:38]} 23. Rbd1 {[%clk 0:01:28]}  Rxe1+ {[%clk 0:01:34]} 24. Nxe1 {[%clk 0:01:27]}  Re8 {[%clk 0:01:15]} 25. Nc2 {[%clk 0:01:21]}  Re5 {[%clk 0:01:11]} 26. Qf3 {[%clk 0:00:44]}  Rxd5 {[%clk 0:01:11]} 27. Re1 {[%clk 0:00:41]}  Re5 {[%clk 0:01:00]} 28. Ne3 {[%clk 0:00:40]}  Qe6 {[%clk 0:00:39]} 29. Rd1 {[%clk 0:00:40]}  Nc4 {[%clk 0:00:31]} 30. Rd8+ {[%clk 0:00:37]}  Kh7 {[%clk 0:00:31]} 31. Nf5 {[%clk 0:00:21]}  Re1+ {[%clk 0:00:26]} 32. Kh2 {[%clk 0:00:21]}  Ne5 {[%clk 0:00:25]} 33. Qf4 {[%clk 0:00:14]}  Qg6 {[%clk 0:00:20]} 34. Rd6 {[%clk 0:00:09]}  Qxg4 {[%clk 0:00:17]} 35. Rxh6+ {[%clk 0:00:08]}  Kg8 {[%clk 0:00:14]} 36. Ne7+ {[%clk 0:00:04]}  Kf8 {[%clk 0:00:14]} 37. Ng6+ {[%clk 0:00:02]}  Ke8 {[%clk 0:00:12]} 38. Rh8+ {[%clk 0:00:02]}  Kd7 {[%clk 0:00:12]} 39. Nxe5+ {[%clk 0:00:02]}  Rxe5 {[%clk 0:00:11]} 40. Qxg4+ {[%clk 0:00:03]}  Kc6 {[%clk 0:00:09]} 41. Qxg7 {[%clk 0:00:04]} 1-0


[Site "https://www.chess.com"]

[Event "Titled Tuesday Blitz April 05 Late 2022"]
[White "Gledura, Benjamin"]
[Black "Federzoni, Enzo"]
[WhiteFideId "712779"]
[BlackFideId "2173301"]
[WhiteElo "2326"]
[BlackElo "1956"]
[Result "1-0"]
[Round "01"]
[TimeControl "180+1"]
[Date "2022.04.06"]
[WhiteClock "0:01:02"]
[BlackClock "0:00:02"]

1. d4 {[%clk 0:03:00]}  Nf6 {[%clk 0:02:58]} 2. Nf3 {[%clk 0:03:01]}  g6 {[%clk 0:02:58]} 3. c3 {[%clk 0:03:01]}  Bg7 {[%clk 0:02:58]} 4. Bg5 {[%clk 0:03:02]}  d5 {[%clk 0:02:57]} 5. Nbd2 {[%clk 0:03:02]}  O-O {[%clk 0:02:58]} 6. e3 {[%clk 0:03:02]}  Nbd7 {[%clk 0:02:58]} 7. Be2 {[%clk 0:03:01]}  h6 {[%clk 0:02:57]} 8. Bh4 {[%clk 0:03:01]}  Re8 {[%clk 0:02:58]} 9. O-O {[%clk 0:03:00]}  e5 {[%clk 0:02:54]} 10. b4 {[%clk 0:02:50]}  e4 {[%clk 0:02:51]} 11. Ne1 {[%clk 0:02:50]}  g5 {[%clk 0:02:42]} 12. Bg3 {[%clk 0:02:49]}  Nf8 {[%clk 0:02:42]} 13. c4 {[%clk 0:02:48]}  c6 {[%clk 0:02:41]} 14. b5 {[%clk 0:02:45]}  N6h7 {[%clk 0:02:38]} 15. Nc2 {[%clk 0:02:41]}  f5 {[%clk 0:02:36]} 16. bxc6 {[%clk 0:02:34]}  bxc6 {[%clk 0:02:35]} 17. Nb4 {[%clk 0:02:35]}  f4 {[%clk 0:02:13]} 18. exf4 {[%clk 0:02:34]}  gxf4 {[%clk 0:02:13]} 19. Bxf4 {[%clk 0:02:32]}  Qf6 {[%clk 0:02:01]} 20. Be3 {[%clk 0:02:31]}  a5 {[%clk 0:01:56]} 21. Nc2 {[%clk 0:02:27]}  Ng5 {[%clk 0:01:51]} 22. Rb1 {[%clk 0:02:21]}  Ng6 {[%clk 0:01:40]} 23. Kh1 {[%clk 0:02:20]}  Nf4 {[%clk 0:01:37]} 24. Bg4 {[%clk 0:02:20]}  Ba6 {[%clk 0:01:16]} 25. Rb6 {[%clk 0:02:18]}  Reb8 {[%clk 0:01:15]} 26. Qb1 {[%clk 0:02:12]}  Rxb6 {[%clk 0:01:15]} 27. Qxb6 {[%clk 0:02:13]}  dxc4 {[%clk 0:01:09]} 28. Bxf4 {[%clk 0:01:51]}  Qxf4 {[%clk 0:00:48]} 29. Qxc6 {[%clk 0:01:50]}  Rf8 {[%clk 0:00:36]} 30. Ne3 {[%clk 0:01:40]}  c3 {[%clk 0:00:24]} 31. Ndc4 {[%clk 0:01:27]}  Bxc4 {[%clk 0:00:23]} 32. Qxc4+ {[%clk 0:01:27]}  Kh8 {[%clk 0:00:22]} 33. Qxc3 {[%clk 0:01:26]}  h5 {[%clk 0:00:16]} 34. Be2 {[%clk 0:01:25]}  Ne6 {[%clk 0:00:16]} 35. Qxa5 {[%clk 0:01:22]}  Nxd4 {[%clk 0:00:16]} 36. Qxh5+ {[%clk 0:01:22]}  Qh6 {[%clk 0:00:16]} 37. Qxh6+ {[%clk 0:01:17]}  Bxh6 {[%clk 0:00:17]} 38. Bc4 {[%clk 0:01:17]}  Rc8 {[%clk 0:00:13]} 39. Bd5 {[%clk 0:01:15]}  Rc5 {[%clk 0:00:11]} 40. Bxe4 {[%clk 0:01:14]}  Ra5 {[%clk 0:00:11]} 41. Bb1 {[%clk 0:01:07]}  Ra3 {[%clk 0:00:09]} 42. h3 {[%clk 0:01:07]}  Bxe3 {[%clk 0:00:09]} 43. fxe3 {[%clk 0:01:08]}  Rxe3 {[%clk 0:00:09]} 44. Rd1 {[%clk 0:01:08]}  Ne2 {[%clk 0:00:09]} 45. Kh2 {[%clk 0:01:06]}  Nf4 {[%clk 0:00:08]} 46. Rd2 {[%clk 0:01:05]}  Kg7 {[%clk 0:00:07]} 47. a4 {[%clk 0:01:04]}  Ra3 {[%clk 0:00:07]} 48. Ra2 {[%clk 0:01:04]}  Rb3 {[%clk 0:00:07]} 49. Be4 {[%clk 0:01:04]}  Ne6 {[%clk 0:00:03]} 50. a5 {[%clk 0:01:03]}  Nc5 {[%clk 0:00:03]} 51. a6 {[%clk 0:01:02]}  Rb8 {[%clk 0:00:02]} 52. a7 {[%clk 0:01:02]} 1-0


[Site "https://www.chess.com"]